fUST/lending_fUST_20250905
["ID","MTS","AMOUNT","RATE_DAILY","PERIOD"]
[383628206,1757046641742,-1685.24,0.00014864,2]
[383628208,1757046641751,-480.0,0.00014864,2]
[383628210,1757046641760,-480.0,0.00014864,2]
[383628212,1757046641769,-480.0,0.00014864,2]
[383628214,1757046641778,-1320.97,0.00014864,2]
[383628216,1757046641787,-597.23,0.00014864,2]
[383628218,1757046641796,-480.0,0.00014864,2]
[383628220,1757046641805,-991.89,0.00014864,2]
[383628222,1757046641814,-480.0,0.00014864,2]
[383628224,1757046641824,-480.0,0.00014864,2]
[383628226,1757046641833,-480.0,0.00014864,2]
[383628228,1757046641842,-480.0,0.00014864,2]
[383628230,1757046641851,-610.35,0.00014864,2]
[383628232,1757046641860,-480.0,0.00014864,2]
[383628234,1757046641869,-480.0,0.00014864,2]
[383628236,1757046641878,-480.0,0.00014864,2]
[383628238,1757046641888,-572.23,0.00014864,2]
[383628240,1757046641898,-480.0,0.00014864,2]
[383628242,1757046641906,-480.0,0.00014864,2]
[383628244,1757046641916,-480.0,0.00014864,2]
[383628246,1757046641926,-480.0,0.00014864,2]
[383628248,1757046641935,-540.45,0.00014864,2]
[383628250,1757046641945,-599.23,0.00014864,2]
[383628252,1757046641954,-480.0,0.00014864,2]
[383628254,1757046641963,-697.98,0.00014864,2]
[383628256,1757046641973,-480.0,0.00014864,2]
[383628258,1757046641982,-480.0,0.00014864,2]
[383628260,1757046641991,-480.0,0.00014864,2]
[383628262,1757046642001,-480.0,0.00014864,2]
[383628264,1757046642011,-511.66,0.00014864,2]
[383628266,1757046642020,-480.0,0.00014864,2]
[383628268,1757046642029,-480.0,0.00014864,2]
[383628270,1757046642039,-480.0,0.00014865,2]
[383628272,1757046642048,-480.0,0.00014865,2]
[383628274,1757046642058,-480.0,0.00014865,2]
[383628276,1757046642068,-480.0,0.00014865,2]
[383628278,1757046642077,-151.0,0.00014865,2]
[383628280,1757046642086,-186.485189,0.00014865,2]
[383628282,1757046642095,-480.0,0.00014865,2]
[383628284,1757046642105,-480.0,0.00014865,2]
[383628286,1757046642114,-151.0,0.00014865,2]
[383628288,1757046642123,-480.0,0.00014865,2]
[383628290,1757046642132,-480.0,0.00014865,2]
[383628292,1757046642141,-161.772598,0.00014865,2]
[383628294,1757046642150,-161.772598,0.00014865,2]
[383628296,1757046642160,-161.772598,0.00014865,2]
[383628298,1757046642170,-161.772598,0.00014865,2]
[383628300,1757046642178,-283.49,0.00014865,2]
[383628302,1757046642187,-480.0,0.00014865,2]
[383628304,1757046642196,-480.0,0.00014865,2]
[383628306,1757046642206,-557.40052192,0.00014865,2]
[383628308,1757046642215,-480.0,0.00014865,2]
[383628310,1757046642224,-151.0,0.00014865,2]
[383628312,1757046642234,-480.0,0.00014865,2]
[383628314,1757046642244,-480.0,0.00014865,2]
[383628316,1757046642254,-622.4,0.00014865,2]
[383628318,1757046642263,-480.0,0.00014865,2]
[383628319,1757046642272,-480.0,0.00014865,2]
[383628321,1757046642281,-480.0,0.00014865,2]
[383628324,1757046642291,-481.08,0.00014865,2]
[383628325,1757046642300,-480.0,0.00014865,2]
[383628327,1757046642310,-480.0,0.00014865,2]
[383628330,1757046642319,-480.0,0.00014865,2]
[383628331,1757046642328,-480.0,0.00014865,2]
[383628333,1757046642337,-480.0,0.00014865,2]
[383628335,1757046642347,-480.0,0.00014865,2]
[383628337,1757046642356,-480.0,0.00014865,2]
[383628339,1757046642367,-480.0,0.00014865,2]
[383628341,1757046642377,-480.0,0.00014865,2]
[383628343,1757046642388,-480.0,0.00014865,2]
[383628345,1757046642398,-623.63090436,0.00014865,2]
[383628347,1757046642408,-480.0,0.00014865,2]
[383628349,1757046642417,-480.0,0.00014865,2]
[383628351,1757046642429,-480.0,0.00014865,2]
[383628353,1757046642439,-480.0,0.00014865,2]
[383628355,1757046642450,-480.0,0.00014865,2]
[383628358,1757046642460,-480.0,0.00014865,2]
[383628359,1757046642470,-480.0,0.00014865,2]
[383628361,1757046642481,-480.0,0.00014865,2]
[383628363,1757046642489,-480.0,0.00014865,2]
[383628365,1757046642498,-480.0,0.00014865,2]
[383628367,1757046642506,-480.0,0.00014865,2]
[383628369,1757046642516,-480.0,0.00014865,2]
[383628371,1757046642529,-480.0,0.00014865,2]
[383628373,1757046642538,-480.0,0.00014865,2]
[383628375,1757046642547,-480.0,0.00014865,2]
[383628377,1757046642556,-480.0,0.00014865,2]
[383628379,1757046642565,-480.0,0.00014865,2]
[383628381,1757046642574,-480.0,0.00014865,2]
[383628383,1757046642584,-503.22,0.00014865,2]
[383628385,1757046642593,-480.0,0.00014865,2]
[383628387,1757046642602,-488.22,0.00014865,2]
[383628389,1757046642611,-480.0,0.00014865,2]
[383628391,1757046642620,-3468.51,0.00014865,2]
[383628393,1757046642629,-480.0,0.00014865,2]
[383628395,1757046642639,-1845.99,0.00014865,2]
[383628397,1757046642648,-480.0,0.00014865,2]
[383628399,1757046642658,-1014.59,0.00014865,2]
[383628402,1757046642668,-674.87,0.00014865,2]
[383628403,1757046642677,-480.0,0.00014865,2]
[383628406,1757046642686,-480.0,0.00014865,2]
[383628407,1757046642695,-480.0,0.00014865,2]
[383628410,1757046642705,-480.0,0.00014865,2]
[383628412,1757046642714,-509.95,0.00014865,2]
[383628414,1757046642723,-480.0,0.00014865,2]
[383628416,1757046642732,-2476.32,0.00014865,2]
[383628417,1757046642742,-480.0,0.00014865,2]
[383628420,1757046642751,-841.57,0.00014865,2]
[383628422,1757046642761,-2875.22,0.00014865,2]
[383628424,1757046642771,-1348.78,0.00014865,2]
[383628425,1757046642780,-480.0,0.00014865,2]
[383628427,1757046642790,-7128.3,0.00014865,2]
[383628429,1757046642801,-480.0,0.00014865,2]
[383628431,1757046642810,-480.0,0.00014865,2]
[383628433,1757046642820,-480.0,0.00014865,2]
[383628435,1757046642829,-636.78,0.00014865,2]
[383628437,1757046642839,-480.0,0.00014865,2]
[383628439,1757046642849,-780.08,0.00014865,2]
[383628441,1757046642858,-481.718405,0.00014865,2]
[383628444,1757046642868,-480.0,0.00014865,2]
[383628446,1757046642878,-480.0,0.00014865,2]
[383628448,1757046642887,-1841.45,0.00014865,2]
[383628449,1757046642897,-1298.41,0.00014865,2]
[383628451,1757046642906,-550.03846207,0.00014865,2]
[383628453,1757046642915,-480.0,0.00014865,2]
[383628455,1757046642924,-480.0,0.00014865,2]
[383628457,1757046642934,-480.0,0.00014865,2]
[383628459,1757046642943,-480.0,0.00014865,2]
[383628461,1757046642953,-480.0,0.00014865,2]
[383628463,1757046642962,-483.63718701,0.00014866,2]
[383628466,1757046642972,-206.203675,0.00014866,2]
[383628468,1757046642982,-480.0,0.00014866,2]
[383628470,1757046642991,-480.0,0.00014866,2]
[383628472,1757046643001,-480.0,0.00014866,2]
[383628474,1757046643010,-480.0,0.00014866,2]
[383628476,1757046643020,-184.51952853,0.00014866,2]
[383628478,1757046643030,-188.42026816,0.00014866,2]
[383628479,1757046643039,-480.0,0.00014866,2]
[383628481,1757046643048,-480.0,0.00014866,2]
[383628483,1757046643057,-480.0,0.00014866,2]
[383628486,1757046643067,-480.0,0.00014866,2]
[383628487,1757046643076,-480.0,0.00014866,2]
[383628489,1757046643086,-480.0,0.00014866,2]
[383628491,1757046643096,-422.15046608,0.00014866,2]
[383628493,1757046643105,-480.0,0.00014866,2]
[383628495,1757046643114,-480.0,0.00014866,2]
[383628497,1757046643124,-790.78,0.00014866,2]
[383628499,1757046643133,-480.0,0.00014866,2]
[383628501,1757046643142,-480.0,0.00014866,2]
[383628503,1757046643152,-480.0,0.00014866,2]
[383628505,1757046643161,-480.0,0.00014866,2]
[383628507,1757046643171,-480.0,0.00014866,2]
[383628509,1757046643180,-480.0,0.00014866,2]
[383628511,1757046643190,-480.81,0.00014866,2]
[383628513,1757046643200,-480.0,0.00014866,2]
[383628515,1757046643209,-480.0,0.00014866,2]
[383628517,1757046643219,-480.0,0.00014866,2]
[383628520,1757046643228,-480.0,0.00014866,2]
[383628522,1757046643239,-480.0,0.00014866,2]
[383628525,1757046643248,-480.0,0.00014866,2]
[383628527,1757046643257,-480.0,0.00014866,2]
[383628529,1757046643267,-480.0,0.00014866,2]
[383628531,1757046643277,-480.0,0.00014866,2]
[383628533,1757046643287,-480.0,0.00014866,2]
[383628535,1757046643296,-480.0,0.00014866,2]
[383628537,1757046643305,-483.70607168,0.00014866,2]
[383628539,1757046643314,-322.33222539,0.00014866,2]
[383628541,1757046643323,-480.0,0.00014866,2]
[383628543,1757046643333,-480.0,0.00014866,2]
[383628545,1757046643343,-480.0,0.00014866,2]
[383628547,1757046643352,-480.0,0.00014866,2]
[383628549,1757046643362,-480.0,0.00014866,2]
[383628559,1757046643450,-491.57811052,0.00014866,2]
[383628561,1757046643459,-480.0,0.00014866,2]
[383628563,1757046643469,-480.0,0.00014866,2]
[383628565,1757046643479,-481.77535468,0.00014866,2]
[383628567,1757046643488,-482.0053665,0.00014866,2]
[383628569,1757046643499,-548.62,0.00014866,2]
[383628572,1757046643508,-480.0,0.00014866,2]
[383628573,1757046643518,-543.33,0.00014866,2]
[383628575,1757046643531,-480.0,0.00014866,2]
[383628577,1757046643540,-480.0,0.00014866,2]
[383628579,1757046643551,-483.19625541,0.00014866,2]
[383628581,1757046643560,-480.0,0.00014866,2]
[383628583,1757046643571,-383.80036426,0.00014866,2]
[383628585,1757046643580,-480.0,0.00014866,2]
[383628587,1757046643589,-480.0,0.00014866,2]
[383628589,1757046643599,-264.46885906,0.00014866,2]
[383628591,1757046643609,-480.0,0.00014866,2]
[383628593,1757046643618,-480.0,0.00014866,2]
[383628595,1757046643627,-483.29408813,0.00014866,2]
[383628597,1757046643636,-480.0,0.00014866,2]
[383628599,1757046643646,-480.0,0.00014866,2]
[383628601,1757046643655,-485.48523707,0.00014866,2]
[383628603,1757046643665,-480.0,0.00014866,2]
[383628605,1757046643674,-480.0,0.00014866,2]
[383628608,1757046643684,-480.0,0.00014866,2]
[383628610,1757046643695,-480.0,0.00014866,2]
[383628612,1757046643704,-480.0,0.00014866,2]
[383628614,1757046643714,-480.0,0.00014866,2]
[383628616,1757046643723,-480.0,0.00014866,2]
[383628618,1757046643732,-480.0,0.00014866,2]
[383628620,1757046643741,-534.67,0.00014866,2]
[383628622,1757046643751,-310.27081167,0.00014866,2]
[383628624,1757046643760,-480.0,0.00014866,2]
[383628626,1757046643769,-480.0,0.00014866,2]
[383628628,1757046643778,-778.99,0.00014866,2]
[383628630,1757046643788,-480.0,0.00014866,2]
[383628632,1757046643797,-480.0,0.00014866,2]
[383628634,1757046643806,-480.0,0.00014866,2]
[383628636,1757046643815,-482.64233866,0.00014866,2]
[383628638,1757046643824,-480.0,0.00014866,2]
[383628640,1757046643834,-480.0,0.00014866,2]
[383628642,1757046643843,-1190.02,0.00014866,2]
[383628644,1757046643853,-578.06,0.00014866,2]
[383628646,1757046643862,-480.0,0.00014866,2]
[383628648,1757046643872,-480.0,0.00014866,2]
[383628650,1757046643881,-480.0,0.00014866,2]
[383628652,1757046643890,-480.0,0.00014866,2]
[383628654,1757046643900,-275.48352916,0.00014866,2]
[383628656,1757046643909,-568.82,0.00014866,2]
[383628658,1757046643918,-480.0,0.00014866,2]
[383628660,1757046643928,-480.0,0.00014866,2]
[383628662,1757046643937,-480.0,0.00014866,2]
[383628664,1757046643946,-480.0,0.00014866,2]
[383628666,1757046643955,-602.11,0.00014866,2]
[383628668,1757046643965,-480.0,0.00014866,2]
[383628670,1757046643974,-480.0,0.00014866,2]
[383628672,1757046643983,-480.0,0.00014866,2]
[383628674,1757046643992,-480.0,0.00014866,2]
[383628676,1757046644002,-480.0,0.00014866,2]
[383628678,1757046644011,-480.0,0.00014866,2]
[383628680,1757046644020,-541.03,0.00014866,2]
[383628681,1757046644030,-480.0,0.00014866,2]
[383628683,1757046644039,-480.0,0.00014866,2]
[383628685,1757046644049,-480.0,0.00014866,2]
[383628687,1757046644058,-480.0,0.00014866,2]
[383628689,1757046644067,-579.15659177,0.00014866,2]
[383628691,1757046644077,-480.0,0.00014866,2]
[383628693,1757046644087,-480.0,0.00014866,2]
[383628695,1757046644096,-480.0,0.00014866,2]
[383628697,1757046644105,-480.0,0.00014866,2]
[383628699,1757046644114,-480.0,0.00014866,2]
[383628701,1757046644123,-480.0,0.00014866,2]
[383628703,1757046644133,-480.0,0.00014866,2]
[383628705,1757046644142,-480.0,0.00014866,2]
[383628707,1757046644151,-480.0,0.00014866,2]
[383628709,1757046644160,-480.0,0.00014866,2]
[383628711,1757046644170,-161.02223054,0.00014866,2]
[383628713,1757046644179,-480.0,0.00014866,2]
[383628715,1757046644188,-480.0,0.00014866,2]
[383628717,1757046644197,-183.8992078,0.00014866,2]
[383628719,1757046644207,-480.0,0.00014866,2]
[383628721,1757046644216,-391.72905702,0.00014866,2]
[383628723,1757046644226,-480.0,0.00014866,2]
[383628725,1757046644237,-500.0,0.00014867,2]
[383628727,1757046644246,-162.22799,0.00014867,2]
[383628729,1757046644256,-185.974912,0.00014867,2]
[383628731,1757046644265,-161.772598,0.00014867,2]
[383628734,1757046644274,-161.772598,0.00014867,2]
[383628736,1757046644284,-161.772598,0.00014867,2]
[383628738,1757046644293,-161.772608,0.00014867,2]
[383628740,1757046644302,-151.0,0.00014867,2]
[383628742,1757046644311,-480.0,0.00014965,2]
[383628743,1757046644321,-480.0,0.00014965,2]
[383628746,1757046644331,-480.0,0.00014965,2]
[383628748,1757046644342,-480.0,0.00014965,2]
[383628749,1757046644354,-480.0,0.00014965,2]
[383628752,1757046644364,-482.32594445,0.00014965,2]
[383628754,1757046644374,-480.0,0.00014965,2]
[383628756,1757046644384,-480.0,0.00014965,2]
[383628757,1757046644393,-231.66720936,0.00014965,2]
[383628759,1757046644402,-480.0,0.00014965,2]
[383628761,1757046644413,-480.0,0.00014965,2]
[383628763,1757046644423,-480.0,0.00014965,2]
[383628766,1757046644433,-480.0,0.00014965,2]
[383628767,1757046644443,-480.0,0.00014965,2]
[383628769,1757046644453,-1286.5,0.00014965,2]
[383628771,1757046644463,-480.0,0.00014965,2]
[383628773,1757046644472,-480.0,0.00014965,2]
[383628775,1757046644481,-480.0,0.00014965,2]
[383628777,1757046644490,-480.0,0.00014965,2]
[383628779,1757046644500,-480.0,0.00014965,2]
[383628781,1757046644509,-483.26306616,0.00014965,2]
[383628782,1757046644518,-480.0,0.00014965,2]
[383628784,1757046644533,-480.0,0.00014965,2]
[383628786,1757046644542,-480.0,0.00014965,2]
[383628788,1757046644551,-480.0,0.00014965,2]
[383628790,1757046644560,-480.0,0.00014965,2]
[383628792,1757046644570,-480.0,0.00014965,2]
[383628794,1757046644579,-565.74816236,0.00014965,2]
[383628796,1757046644588,-480.0,0.00014965,2]
[383628798,1757046644597,-480.0,0.00014965,2]
[383628800,1757046644606,-480.0,0.00014965,2]
[383628802,1757046644618,-480.0,0.00014965,2]
[383628804,1757046644627,-490.59583654,0.00014965,2]
[383628805,1757046644636,-480.0,0.00014965,2]
[383628806,1757046644645,-497.17,0.00014965,2]
[383628807,1757046644655,-480.0,0.00014965,2]
[383628808,1757046644664,-480.0,0.00014965,2]
[383628809,1757046644674,-480.0,0.00014965,2]
[383628810,1757046644683,-548.36,0.00014965,2]
[383628811,1757046644693,-480.0,0.00014965,2]
[383628812,1757046644702,-480.0,0.00014965,2]
[383628813,1757046644711,-482.54798358,0.00014965,2]
[383628814,1757046644724,-556.20221573,0.00014965,2]
[383628815,1757046644733,-480.0,0.00014965,2]
[383628816,1757046644742,-480.0,0.00014965,2]
[383628817,1757046644752,-480.0,0.00014965,2]
[383628818,1757046644761,-516.81306998,0.00014965,2]
[383628819,1757046644770,-480.0,0.0001497,2]
[383628820,1757046644779,-480.0,0.0001497,2]
[383628821,1757046644788,-480.0,0.0001497,2]
[383628822,1757046644798,-480.0,0.00014971,2]
[383628823,1757046644807,-320.91802029,0.00014971,2]
[383628824,1757046644816,-484.30655497,0.00014971,2]
[383628825,1757046644825,-611.30614242,0.00014973,2]
[383628826,1757046644835,-300.0,0.00014986,2]
[383628827,1757046644844,-300.0,0.00014986,2]
[383628828,1757046644853,-300.0,0.00014986,2]
[383628829,1757046644862,-300.0,0.00014986,2]
[383628830,1757046644871,-300.0,0.00014986,2]
[383628831,1757046644881,-300.0,0.00014986,2]
[383628832,1757046644890,-300.0,0.00014986,2]
[383628833,1757046644900,-300.0,0.00014986,2]
[383628834,1757046644909,-300.0,0.00014986,2]
[383628835,1757046644918,-300.0,0.00014986,2]
[383628836,1757046644928,-300.0,0.00014986,2]
[383628837,1757046644937,-300.0,0.00014986,2]
[383628838,1757046644947,-300.0,0.00014986,2]
[383628839,1757046644956,-300.0,0.00014986,2]
[383628840,1757046644965,-300.0,0.00014986,2]
[383628841,1757046644975,-600.0,0.00014988,2]
[383628842,1757046644984,-160.0,0.00015,2]
[383628843,1757046644993,-223.971,0.0001507,2]
[383628844,1757046645003,-157.0,0.00015071,2]
[383628845,1757046645013,-305.66764791,0.00015071,2]
[383628846,1757046645022,-284.76108841,0.00015071,2]
[383628847,1757046645032,-157.0,0.00015071,2]
[383628848,1757046645042,-157.0,0.00015071,2]
[383628849,1757046645051,-157.0,0.00015071,2]
[383628850,1757046645060,-500.0,0.00015071,2]
[383628851,1757046645149,-500.0,0.00015071,2]
[383628852,1757046645159,-157.0,0.00015071,2]
[383628853,1757046645175,-157.0,0.00015071,2]
[383628854,1757046645185,-157.0,0.00015071,2]
[383628855,1757046645194,-500.0,0.00015071,2]
[383628856,1757046645204,-157.0,0.00015071,2]
[383628857,1757046645213,-157.0,0.00015071,2]
[383628858,1757046645223,-157.0,0.00015071,2]
[383628859,1757046645233,-500.0,0.00015071,2]
[383628860,1757046645242,-200.73,0.00015071,2]
[383628861,1757046645252,-199.67260504,0.00015071,2]
[383628862,1757046645261,-1000.0,0.00015121,2]
[383628863,1757046645272,-1000.0,0.00015121,2]
[383628864,1757046645281,-248.37487353,0.00015121,2]
[383628865,1757046645290,-480.0,0.00015131,2]
[383628866,1757046645300,-480.0,0.00015132,2]
[383628867,1757046645309,-480.0,0.00015132,2]
[383628868,1757046645319,-480.0,0.00015132,2]
[383628869,1757046645328,-986.98,0.00015132,2]
[383628870,1757046645338,-1131.75,0.00015132,2]
[383628871,1757046645347,-480.0,0.00015132,2]
[383628872,1757046645356,-2174.41,0.00015132,2]
[383628873,1757046645365,-480.0,0.00015132,2]
[383628874,1757046645375,-480.0,0.00015132,2]
[383628875,1757046645384,-490.98,0.00015132,2]
[383628876,1757046645393,-480.0,0.00015132,2]
[383628877,1757046645403,-733.85,0.00015132,2]
[383628878,1757046645412,-510.45,0.00015132,2]
[383628879,1757046645422,-480.0,0.00015132,2]
[383628880,1757046645431,-613.82579862,0.00015138,2]
[383628881,1757046645441,-1129.78,0.00015138,2]
[383628882,1757046645450,-1685.24,0.00015138,2]
[383628883,1757046645459,-480.0,0.00015138,2]
[383628884,1757046645469,-480.0,0.00015138,2]
[383628885,1757046645478,-1320.97,0.00015138,2]
[383628886,1757046645487,-597.23,0.00015138,2]
[383628887,1757046645496,-480.0,0.00015138,2]
[383628888,1757046645506,-991.89,0.00015138,2]
[383628889,1757046645516,-480.0,0.00015138,2]
[383628890,1757046645526,-480.0,0.00015138,2]
[383628891,1757046645535,-610.35,0.00015138,2]
[383628892,1757046645544,-480.0,0.00015138,2]
[383628893,1757046645554,-480.0,0.00015138,2]
[383628894,1757046645563,-480.0,0.00015138,2]
[383628895,1757046645573,-572.23,0.00015138,2]
[383628896,1757046645582,-480.0,0.00015138,2]
[383628897,1757046645591,-480.0,0.00015138,2]
[383628898,1757046645601,-480.0,0.00015138,2]
[383628899,1757046645610,-480.0,0.00015138,2]
[383628900,1757046645620,-540.45,0.00015138,2]
[383628901,1757046645629,-599.23,0.00015138,2]
[383628902,1757046645639,-480.0,0.00015138,2]
[383628903,1757046645648,-697.98,0.00015138,2]
[383628904,1757046645658,-480.0,0.00015138,2]
[383628905,1757046645667,-480.0,0.00015138,2]
[383628906,1757046645676,-480.0,0.00015138,2]
[383628907,1757046645686,-480.0,0.00015138,2]
[383628908,1757046645695,-511.66,0.00015138,2]
[383628909,1757046645705,-480.0,0.00015138,2]
[383628910,1757046645714,-480.0,0.00015138,2]
[383628911,1757046645724,-480.0,0.00015139,2]
[383628912,1757046645733,-596.46553739,0.00015139,2]
[383628913,1757046645743,-480.0,0.00015139,2]
[383628914,1757046645752,-480.0,0.00015139,2]
[383628915,1757046645761,-480.0,0.00015139,2]
[383628916,1757046645771,-480.0,0.00015139,2]
[383628917,1757046645781,-480.0,0.00015139,2]
[383628918,1757046645790,-262.86762526,0.00015139,2]
[383628919,1757046645799,-480.0,0.00015139,2]
[383628920,1757046645808,-480.0,0.00015139,2]
[383628921,1757046645818,-274.9560289,0.00015139,2]
[383628922,1757046645827,-480.0,0.00015139,2]
[383628923,1757046645836,-480.0,0.00015139,2]
[383628924,1757046645845,-480.0,0.00015139,2]
[383628925,1757046645855,-480.0,0.00015139,2]
[383628926,1757046645864,-481.08,0.00015139,2]
[383628927,1757046645874,-299.67792799,0.00015139,2]
[383628928,1757046645883,-480.0,0.00015139,2]
[383628929,1757046645893,-480.0,0.00015139,2]
[383628930,1757046645902,-480.0,0.00015139,2]
[383628931,1757046645911,-480.0,0.00015139,2]
[383628932,1757046645921,-480.0,0.00015139,2]
[383628933,1757046645930,-480.0,0.00015139,2]
[383628934,1757046645940,-27.36342078,0.00015139,2]
[383628935,1757046645958,-452.63657922,0.00015139,2]
[383628936,1757046645968,-480.0,0.00015139,2]
[383628937,1757046645978,-480.0,0.00015139,2]
[383628938,1757046645987,-480.0,0.00015139,2]
[383628939,1757046645997,-480.0,0.00015139,2]
[383628940,1757046646007,-480.0,0.00015139,2]
[383628941,1757046646017,-270.47420186,0.00015139,2]
[383628942,1757046646029,-209.52579814,0.00015139,2]
[383628943,1757046646040,-480.0,0.00015139,2]
[383628944,1757046646050,-486.03814939,0.00015139,2]
[383628945,1757046646059,-480.0,0.00015139,2]
[383628946,1757046646070,-480.0,0.00015139,2]
[383628947,1757046646079,-480.0,0.00015139,2]
[383628948,1757046646094,-480.0,0.00015139,2]
[383628949,1757046646103,-480.0,0.00015139,2]
[383628950,1757046646112,-480.0,0.00015139,2]
[383628951,1757046646122,-480.0,0.00015139,2]
[383628952,1757046646131,-480.0,0.00015139,2]
[383628953,1757046646140,-503.22,0.00015139,2]
[383628954,1757046646149,-480.0,0.00015139,2]
[383628955,1757046646158,-488.22,0.00015139,2]
[383628956,1757046646168,-480.0,0.00015139,2]
[383628957,1757046646177,-3468.51,0.00015139,2]
[383628958,1757046646186,-1845.99,0.00015139,2]
[383628959,1757046646196,-156.82960944,0.00015139,2]
[383628960,1757046646207,-323.17039056,0.00015139,2]
[383628961,1757046646217,-562.7963846,0.00015139,2]
[383628962,1757046646238,-451.7936154,0.00015139,2]
[383628963,1757046646249,-674.87,0.00015139,2]
[383628964,1757046646258,-480.0,0.00015139,2]
[383628965,1757046646267,-480.0,0.00015139,2]
[383628966,1757046646276,-480.0,0.00015139,2]
[383628967,1757046646286,-509.95,0.00015139,2]
[383628968,1757046646295,-80.811815,0.00015139,2]
[383628969,1757046646310,-399.188185,0.00015139,2]
[383628970,1757046646319,-2476.32,0.00015139,2]
[383628971,1757046646329,-480.0,0.00015139,2]
[383628972,1757046646338,-841.57,0.00015139,2]
[383628973,1757046646347,-2875.22,0.00015139,2]
[383628974,1757046646356,-790.52795694,0.00015139,2]
[383628975,1757046646367,-558.25204306,0.00015139,2]
[383628976,1757046646376,-480.0,0.00015139,2]
[383628977,1757046646386,-2392.60676288,0.00015139,2]
[383628978,1757046646397,-4735.69323712,0.00015139,2]
[383628979,1757046646406,-636.78,0.00015139,2]
[383628980,1757046646415,-480.0,0.00015139,2]
[383628981,1757046646425,-780.08,0.00015139,2]
[383628982,1757046646434,-18.81353714,0.00015139,2]
[383628983,1757046661040,4114.18509749,0.00025,60]
[383628984,1757046661067,785.81490251,0.00025,60]
[383628985,1757046680884,450.0,0.00019672,20]
[383628986,1757046691738,233.316226,0.00013699,2]
[383628997,1757047043575,480.0,0.00013868,2]
[383628999,1757047265416,258.64889508,0.00013912,2]
[383629000,1757047288382,258.64889508,0.00013912,2]
[383629001,1757047291233,378.66,0.00012329,2]
[383629003,1757047297128,690.934484,0.00013699,2]
[383629004,1757047301645,465.29,0.00012329,2]
[383629005,1757047310783,258.64889508,0.00013912,2]
[383629006,1757047312099,512.53,0.00012329,2]
[383629008,1757047322504,531.1,0.00012329,2]
[383629010,1757047326647,19179.9813333,0.00013489,2]
[383629011,1757047333135,442.58,0.00012329,2]
[383629012,1757047333274,258.64889508,0.00013912,2]
[383629013,1757047343539,368.82,0.00012329,2]
[383629014,1757047353955,466.22,0.00012329,2]
[383629028,1757047356162,258.64889508,0.00013912,2]
[383629029,1757047364394,448.69,0.00012329,2]
[383629030,1757047374804,424.06,0.00012329,2]
[383629031,1757047379300,258.64889508,0.00013912,2]
[383629032,1757047385502,395.18,0.00012329,2]
[383629033,1757047395921,364.14,0.00012329,2]
[383629034,1757047401785,258.64889508,0.00013912,2]
[383629035,1757047406340,332.47,0.00012329,2]